bitfinex-derivatives/quotes_SOLF0:USTF0_20241218
["timestamp","ask_amount","ask_price","bid_price","bid_amount"]
[1734540380693,2.36,216.55,216.47,2.3103]
[1734540381096,2.36,216.55,216.46,11.24798792]
[1734540382494,2.3098,216.52,216.46,11.24798792]
[1734540384900,2.36,216.55,216.46,11.24798792]
[1734540385101,2.36,216.55,216.43,11.24798792]
[1734540385297,1.4575,216.54,216.43,11.24798792]
[1734540385495,2.3103,216.48,216.43,11.24798792]
[1734540385695,4.6703,216.48,216.43,11.24798792]
[1734540387503,2.36,216.48,216.43,11.24798792]
[1734540388001,2.36,216.48,216.44,2.3106]
[1734540389997,1.4575,216.54,216.43,11.24798792]
[1734540390203,2.36,216.54,216.49,11.24798792]
[1734540390699,2.36,216.54,216.49,13.55798792]
[1734540390900,2.36,216.54,216.49,11.24798792]
[1734540391297,2.3097,216.53,216.49,13.55808792]
[1734540391797,4.6696,216.54,216.5,2.31]
[1734540392105,2.3096,216.54,216.5,2.31]
[1734540392308,2.36,216.56,216.52,2.3097]
[1734540392698,2.36,216.56,216.49,11.24798792]
[1734540392999,2.36,216.56,216.52,2.3098]
[1734540393704,4.6694,216.56,216.52,2.3098]
[1734540395011,2.34,216.6,216.52,11.24798792]
[1734540396304,2.34,216.6,216.5,1.5999]
[1734540396603,2.34,216.6,216.48,11.24798792]
[1734540396804,2.3099,216.52,216.47,2.3103]
[1734540397199,2.34,216.54,216.45,12.76768792]
[1734540397603,2.3097,216.53,216.45,12.76768792]
[1734540398606,2.3097,216.53,216.48,2.3101]
[1734540398809,2.3098,216.52,216.48,2.3101]
[1734540399109,2.34,216.54,216.48,2.3101]
[1734540399408,2.31,216.5,216.46,2.3104]
[1734540400412,2.3103,216.48,216.44,2.3106]
[1734540400610,2.34,216.54,216.43,1.5999]
[1734540400807,2.34,216.54,216.42,11.24798792]
[1734540401012,2.3105,216.46,216.41,2.311]
[1734540402009,2.34,216.47,216.41,2.311]
[1734540402010,2.3106,216.45,216.41,2.311]
[1734540403113,2.34,216.47,216.42,2.3108]
[1734540403417,2.34,216.47,216.4,11.24798792]
[1734540404515,2.3104,216.46,216.41,2.3109]
[1734540404818,2.34,216.47,216.37,0.38321]
[1734540405206,13.58798792,216.47,216.37,0.38321]
[1734540406207,2.3113,216.38,216.37,0.38321]
[1734540407208,4.6512,216.39,216.37,0.38321]
[1734540407614,2.34,216.39,216.37,0.38321]
[1734540408007,4.6508,216.43,216.37,0.38321]
[1734540408218,10.07338718,216.43,216.37,0.38321]
[1734540408411,7.76258718,216.43,216.37,0.38321]
[1734540409113,7.76258718,216.43,216.39,2.3111]
[1734540409114,2.34,216.43,216.39,2.3111]
[1734540409416,2.34,216.47,216.4,11.24798792]
[1734540409616,2.34,216.48,216.4,11.24798792]
[1734540409819,2.3104,216.46,216.41,2.3109]
[1734540410316,2.3106,216.45,216.39,2.3111]
[1734540410514,2.34,216.48,216.39,2.3111]
[1734540411016,2.3106,216.44,216.39,2.3111]
[1734540411218,2.34,216.48,216.34,11.24798792]
[1734540411607,2.3109,216.42,216.34,11.24798792]
[1734540411816,2.34,216.43,216.37,2.3114]
[1734540412214,2.3109,216.42,216.36,2.3115]
[1734540413122,2.34,216.43,216.34,11.24798792]
[1734540413123,2.34,216.43,216.34,13.55968792]
[1734540413512,2.34,216.43,216.34,11.24798792]
[1734540413717,2.34,216.43,216.33,2.9753]
[1734540413916,2.34,216.43,216.32,0.54771]
[1734540414418,2.3113,216.38,216.33,2.3117]
[1734540414614,4.6513,216.38,216.32,0.54771]
[1734540416215,4.6513,216.38,216.33,2.3118]
[1734540417309,2.34,216.38,216.32,0.54771]
[1734540417514,2.34,216.41,216.34,11.24798792]
[1734540417716,11.24798792,216.5,216.37,11.24798792]
[1734540417717,2.34,216.44,216.37,11.24798792]
[1734540417918,10.28256549,216.44,216.39,2.3111]
[1734540418419,7.94256549,216.44,216.39,2.3111]
[1734540418623,10.28256549,216.44,216.39,2.3111]
[1734540419817,2.34,216.44,216.4,2.3111]
[1734540420023,2.34,216.44,216.37,11.24798792]
[1734540420421,2.34,216.44,216.41,2.3109]
[1734540420820,2.3105,216.46,216.41,2.3109]
[1734540421019,2.34,216.48,216.41,2.3109]
[1734540421824,5.59283431,216.46,216.41,2.3109]
[1734540422523,7.90323431,216.46,216.41,2.3109]
[1734540424533,2.3103,216.47,216.37,15.75448792]
[1734540424729,2.34,216.48,216.4,11.24798792]
[1734540425528,7.80351049,216.47,216.42,2.3108]
[1734540426127,2.3105,216.45,216.4,2.311]
[1734540426636,2.3106,216.44,216.4,2.311]
[1734540427532,2.3105,216.45,216.41,2.3109]
[1734540428132,2.3107,216.44,216.41,2.3109]
[1734540428636,5.49321049,216.47,216.41,2.3109]
[1734540428838,2.3106,216.45,216.41,2.3109]
[1734540429638,2.34,216.48,216.45,2.3105]
[1734540429639,4.6502,216.48,216.45,2.3105]
[1734540429837,7.86847016,216.5,216.4,11.24798792]
[1734540430639,2.3104,216.47,216.43,2.3107]
[1734540430940,7.86847016,216.5,216.4,11.24798792]
[1734540431242,7.86847016,216.5,216.41,2.34]
[1734540431538,2.3102,216.49,216.46,2.3104]
[1734540431934,7.83847016,216.5,216.46,2.3104]
[1734540433044,1.5505,216.53,216.49,2.31]
[1734540433045,2.3097,216.53,216.49,2.31]
[1734540433240,2.34,216.52,216.43,11.24798792]
[1734540433646,2.31,216.51,216.46,2.3104]
[1734540434051,2.34,216.52,216.46,2.3104]
[1734540434247,2.34,216.52,216.37,15.75448792]
[1734540434452,11.24798792,216.5,216.37,14.25628792]
[1734540434951,2.3106,216.45,216.4,2.311]
[1734540435151,2.3106,216.45,216.37,14.25628792]
[1734540435152,4.6506,216.45,216.37,14.25628792]
[1734540435750,2.3104,216.47,216.43,2.3107]
[1734540435950,4.6504,216.47,216.43,2.3107]
[1734540436150,2.34,216.47,216.4,11.24798792]
[1734540437146,1.5102,216.51,216.43,11.24798792]
[1734540437349,2.34,216.5,216.43,11.24798792]
[1734540437955,2.34,216.5,216.4,11.24798792]
[1734540438645,2.3101,216.49,216.4,11.24798792]
[1734540439558,2.3101,216.49,216.46,2.3104]
[1734540439951,4.6498,216.53,216.43,11.24798792]
[1734540440151,2.9232,216.57,216.44,2.34]
[1734540440348,4.6172,216.64,216.49,11.24798792]
[1734540440349,2.34,216.58,216.49,11.24798792]
[1734540440556,2.3093,216.57,216.49,11.24798792]
[1734540441049,7.86518483,216.59,216.49,11.24798792]
[1734540442456,7.86518483,216.59,216.51,2.3099]
[1734540442757,2.3094,216.56,216.51,2.3099]
[1734540444159,7.86518483,216.59,216.51,2.3099]
[1734540444454,7.86518483,216.59,216.53,2.3096]
[1734540444654,7.86518483,216.59,216.52,11.24798792]
[1734540445055,7.86518483,216.59,216.54,2.3096]
[1734540445353,10.17428483,216.59,216.54,2.3096]
[1734540446455,2.34,216.59,216.52,11.24798792]
[1734540446757,2.34,216.59,216.49,11.24798792]
[1734540447262,2.3093,216.57,216.53,2.3096]
[1734540447954,2.34,216.59,216.49,11.24798792]
[1734540449156,2.3093,216.57,216.53,2.3096]
[1734540449357,2.34,216.59,216.52,11.24798792]
[1734540449854,4.6491,216.59,216.54,2.3096]
[1734540450656,2.34,216.59,216.52,11.24798792]
[1734540450851,2.34,216.59,216.49,11.24798792]
[1734540451059,2.34,216.59,216.46,15.13168792]
[1734540451258,2.34,216.59,216.46,11.24798792]
[1734540451456,11.24798792,216.57,216.43,13.58798792]
[1734540451656,1.5753,216.56,216.43,13.58798792]
[1734540452263,2.31,216.51,216.46,2.3104]
[1734540452461,4.65,216.51,216.46,2.3104]
[1734540452852,2.31,216.5,216.43,13.58798792]
[1734540453057,13.58798792,216.51,216.32,51.17045473]
[1734540453262,11.24798792,216.48,216.35,11.24798792]
[1734540453557,11.24798792,216.45,216.33,6.39630684]
[1734540453754,2.34,216.44,216.33,6.39630684]
[1734540454153,2.3111,216.41,216.32,11.24798792]
[1734540454357,2.3111,216.41,216.35,11.24798792]
[1734540454562,1.4863,216.47,216.35,11.24798792]
[1734540454755,2.3106,216.44,216.35,11.24798792]
[1734540455155,1.5855,216.49,216.38,11.24798792]
[1734540455465,2.34,216.48,216.41,11.24798792]
[1734540455664,2.34,216.49,216.41,11.24798792]
[1734540455865,2.3102,216.48,216.41,13.55898792]
[1734540456861,7.76003436,216.48,216.41,13.55898792]
[1734540457665,2.3104,216.47,216.41,13.55898792]
[1734540459463,2.3104,216.46,216.41,13.55898792]
[1734540460062,5.44983436,216.48,216.41,13.55898792]
[1734540460265,5.44983436,216.48,216.39,2.3111]
[1734540460666,5.44983436,216.48,216.38,11.24798792]
[1734540461164,2.3104,216.47,216.38,11.24798792]
[1734540461358,5.44983436,216.48,216.41,11.24798792]
[1734540462461,7.76013436,216.48,216.42,2.3108]
[1734540462661,5.44983436,216.48,216.33,6.39630684]
[1734540462863,11.24798792,216.45,216.33,6.39630684]
[1734540463163,5.4126,216.44,216.31,11.24798792]
[1734540463357,5.4126,216.44,216.29,1.5273]
[1734540463358,11.24798792,216.42,216.28,11.24798792]
[1734540463562,2.3116,216.36,216.29,2.3122]
[1734540463760,2.34,216.36,216.31,11.24798792]
[1734540463963,2.34,216.36,216.32,2.3119]
[1734540465972,4.6515,216.36,216.31,13.55998792]
[1734540466166,4.6515,216.36,216.31,11.24798792]
[1734540466368,2.34,216.36,216.28,11.24798792]
[1734540466569,2.3117,216.34,216.28,13.56028792]
[1734540466769,2.34,216.36,216.28,11.24798792]
[1734540468171,2.34,216.36,216.3,2.3121]
[1734540468375,2.34,216.36,216.28,11.24798792]
[1734540469077,2.3119,216.33,216.28,13.56028792]
[1734540469279,2.34,216.36,216.28,13.56028792]
[1734540469476,2.312,216.32,216.28,11.24798792]
[1734540469675,2.34,216.36,216.28,11.24798792]
[1734540469875,2.34,216.36,216.24,5.4419]
[1734540469876,2.34,216.36,216.25,11.24798792]
[1734540470075,2.3122,216.3,216.25,13.56068792]
[1734540470279,2.34,216.36,216.25,13.56068792]
[1734540470680,2.34,216.36,216.22,1.5142]
[1734540470681,2.3125,216.27,216.23,2.3128]
[1734540470880,2.34,216.3,216.23,2.3128]
[1734540471179,2.3124,216.28,216.23,2.3128]
[1734540471477,2.34,216.3,216.19,11.24798792]
[1734540471874,2.3127,216.25,216.19,11.24798792]
[1734540472078,2.3127,216.25,216.2,2.3132]
[1734540473984,2.34,216.3,216.19,11.24798792]
[1734540474184,2.34,216.3,216.22,11.24798792]
[1734540474385,2.3123,216.29,216.24,2.3127]
[1734540474683,2.34,216.3,216.22,11.24798792]
[1734540475278,2.34,216.3,216.25,2.3126]
[1734540475279,4.6522,216.3,216.25,2.3126]
[1734540475581,2.34,216.34,216.2,2.34]
[1734540475784,2.34,216.34,216.26,11.24798792]
[1734540476177,2.3119,216.33,216.29,2.3122]
[1734540476382,2.34,216.34,216.26,11.24798792]
[1734540476885,2.34,216.34,216.29,11.24798792]
[1734540477287,2.3115,216.37,216.33,2.3118]
[1734540477487,4.6515,216.37,216.33,2.3118]
[1734540477788,2.34,216.37,216.29,11.24798792]
[1734540478181,2.3115,216.36,216.31,2.312]
[1734540479382,2.34,216.37,216.29,2.3122]
[1734540479383,2.3116,216.35,216.29,2.3122]
[1734540479689,2.3116,216.35,216.26,12.72758792]
[1734540480085,2.34,216.37,216.26,12.72758792]
[1734540480285,4.6514,216.37,216.26,12.72758792]
[1734540480487,2.3114,216.37,216.29,11.24798792]
[1734540480786,2.34,216.37,216.35,2.3115]
[1734540481484,2.34,216.37,216.27,3.0417]
[1734540481687,2.3113,216.38,216.34,2.3117]
[1734540481988,2.34,216.38,216.27,3.0417]
[1734540482192,2.312,216.32,216.27,2.3123]
[1734540482379,2.34,216.33,216.19,2.34]
[1734540482583,2.34,216.33,216.24,2.3127]
[1734540483789,2.34,216.33,216.28,2.3123]
[1734540483790,4.6519,216.33,216.28,2.3123]
[1734540483988,4.6519,216.33,216.25,11.24798792]
[1734540484383,2.3117,216.35,216.3,2.3121]
[1734540484587,2.34,216.34,216.25,11.24798792]
[1734540484885,2.34,216.34,216.3,2.3121]
[1734540485092,2.34,216.34,216.25,11.24798792]
[1734540485292,5.44413008,216.4,216.28,11.24798792]
[1734540485492,2.3113,216.38,216.34,2.3116]
[1734540486181,2.34,216.4,216.31,11.24798792]
[1734540486384,12.82218792,216.46,216.31,11.24798792]
[1734540486781,2.34,216.45,216.34,11.24798792]
[1734540486986,2.34,216.45,216.4,2.3111]
[1734540487191,2.34,216.45,216.34,11.24798792]
[1734540487493,2.3108,216.43,216.34,11.24798792]
[1734540487993,2.311,216.41,216.36,2.3115]
[1734540488188,5.41727396,216.44,216.31,11.24798792]
[1734540488389,5.41727396,216.44,216.29,24.98003849]
[1734540488590,2.3112,216.4,216.35,2.3115]
[1734540488793,4.6512,216.4,216.35,2.3115]
[1734540489083,2.3113,216.38,216.33,2.3118]
[1734540489393,2.34,216.4,216.29,22.64003849]
[1734540489893,2.34,216.4,216.29,4.5784]
[1734540490294,2.3116,216.36,216.31,2.3119]
[1734540490598,2.34,216.35,216.29,4.5784]
[1734540490796,2.34,216.36,216.29,4.5784]
[1734540491495,2.34,216.36,216.33,2.3118]
[1734540493297,2.34,216.41,216.29,22.64003849]
[1734540494289,4.651,216.41,216.29,22.64003849]
[1734540494488,2.34,216.41,216.33,18.06163849]
[1734540494686,70.92163849,216.51,216.42,2.3108]
[1734540494687,2.3104,216.46,216.42,2.3108]
[1734540494887,2.34,216.46,216.37,18.06163849]
[1734540495091,2.34,216.46,216.38,2.34]
[1734540495292,2.3106,216.45,216.41,2.3109]
[1734540495493,2.34,216.46,216.38,2.34]
[1734540496700,2.34,216.46,216.43,2.3107]
[1734540497797,2.34,216.46,216.44,2.3106]
[1734540498194,2.34,216.46,216.4,2.3111]
[1734540499001,2.34,216.46,216.38,4.5866]
[1734540499500,4.6501,216.49,216.45,2.3105]
[1734540499695,4.6501,216.49,216.38,4.5866]
[1734540500096,2.3102,216.48,216.44,2.3106]
[1734540500598,2.34,216.49,216.38,4.5866]
[1734540500994,2.31,216.5,216.38,4.5866]
[1734540501506,2.34,216.51,216.38,4.5866]
[1734540502503,2.3102,216.48,216.38,4.5866]
[1734540502900,2.34,216.51,216.38,4.5866]
[1734540503198,2.34,216.51,216.45,2.3105]
[1734540503502,2.3102,216.48,216.44,2.3106]
[1734540503913,2.3102,216.48,216.38,4.5866]
[1734540504209,2.34,216.51,216.38,4.5866]
[1734540504803,2.3104,216.47,216.42,2.3108]
[1734540505010,2.34,216.46,216.42,2.3108]
[1734540505405,2.34,216.46,216.43,2.3107]
[1734540505605,2.34,216.48,216.38,4.5866]
[1734540506010,2.34,216.48,216.41,18.06163849]
[1734540506410,2.34,216.48,216.47,2.3103]
[1734540506710,2.34,216.53,216.41,18.06163849]
[1734540507010,4.6497,216.53,216.49,2.31]
[1734540507313,2.3097,216.53,216.49,2.31]
[1734540507615,2.34,216.55,216.51,2.3098]
[1734540507908,21.18663849,216.59,216.38,4.5866]
[1734540508111,2.3102,216.48,216.43,2.3107]
[1734540508406,5.54622696,216.55,216.43,2.3107]
[1734540508407,2.34,216.5,216.43,2.3107]
[1734540508618,2.3104,216.47,216.4,18.06163849]
[1734540508813,2.3104,216.47,216.44,2.3106]
[1734540509008,2.34,216.49,216.4,18.06163849]
[1734540509209,4.6502,216.49,216.42,2.3108]
[1734540509416,4.6502,216.49,216.4,18.06163849]
[1734540509417,2.34,216.49,216.4,18.06163849]
[1734540509915,2.3102,216.48,216.44,2.3106]
[1734540511614,2.3102,216.48,216.45,2.3105]
[1734540512013,4.6501,216.49,216.45,2.3105]
[1734540513613,2.34,216.49,216.43,11.27630394]
[1734540513916,2.34,216.51,216.43,11.27630394]
[1734540514217,5.54622696,216.55,216.45,2.3105]
[1734540514410,5.54622696,216.55,216.43,11.27630394]
[1734540514411,2.3101,216.5,216.43,11.27630394]
[1734540515420,2.3101,216.5,216.46,2.3103]
[1734540516320,2.3102,216.48,216.45,2.3105]
[1734540516517,2.3102,216.48,216.43,11.27630394]
[1734540516717,2.3105,216.46,216.42,2.3108]
[1734540517917,2.34,216.48,216.4,11.27630394]
[1734540518113,2.34,216.48,216.4,2.311]
[1734540518114,2.3107,216.44,216.4,2.311]
[1734540518311,2.3107,216.44,216.38,3.0661]
[1734540519726,2.3107,216.44,216.41,2.3109]
[1734540519923,2.3108,216.43,216.38,3.0661]
[1734540520315,2.34,216.48,216.37,11.27630394]
[1734540520620,2.3108,216.43,216.37,11.27630394]
[1734540520820,2.3108,216.43,216.39,2.3111]
[1734540521717,2.34,216.43,216.35,0.22435]
[1734540523417,2.34,216.43,216.37,11.27630394]
[1734540523818,2.34,216.43,216.38,2.3112]
[1734540524018,2.34,216.43,216.37,11.27630394]
[1734540524521,2.3105,216.46,216.42,2.3108]
[1734540524926,2.3105,216.46,216.37,11.27630394]
[1734540525324,2.34,216.47,216.4,11.27630394]
[1734540525725,2.34,216.47,216.43,11.27630394]
[1734540525926,2.3101,216.5,216.43,11.27630394]
[1734540526225,4.6501,216.5,216.43,11.27630394]
[1734540526727,2.34,216.5,216.43,11.27630394]
[1734540527021,2.34,216.5,216.46,2.3103]
[1734540527431,2.34,216.54,216.46,11.27630394]
[1734540527826,2.34,216.54,216.48,2.3102]
[1734540528130,2.34,216.54,216.46,11.27630394]
[1734540528330,2.34,216.54,216.49,2.3101]
[1734540528721,2.3097,216.53,216.49,2.3101]
[1734540529721,5.60959437,216.55,216.49,2.3101]
[1734540529923,2.3096,216.54,216.46,11.27630394]
[1734540530128,2.34,216.55,216.46,11.27630394]
[1734540530325,2.34,216.55,216.49,11.27630394]
[1734540530521,2.34,216.56,216.49,11.27630394]
[1734540530730,2.3095,216.55,216.5,2.3099]
[1734540531132,2.3095,216.55,216.49,11.27630394]
[1734540531335,2.3095,216.55,216.51,2.3099]
[1734540531631,4.6443,216.6,216.49,11.27630394]
[1734540531925,2.34,216.59,216.49,11.27630394]
[1734540532129,2.3092,216.58,216.49,11.27630394]
[1734540532932,2.3092,216.58,216.53,2.3096]
[1734540541638,2.3094,216.56,216.52,2.3098]
[1734540541937,2.34,216.59,216.49,11.27630394]
[1734540542334,2.3096,216.55,216.5,2.31]
[1734540542833,2.34,216.59,216.49,11.27630394]
[1734540543038,2.3093,216.57,216.49,11.27630394]
[1734540543339,2.3093,216.57,216.53,2.3097]
[1734540545236,2.34,216.59,216.49,11.27630394]
[1734540545537,2.34,216.59,216.47,3.0854]
[1734540545742,13.26892105,216.59,216.47,3.0854]
[1734540547640,2.3098,216.52,216.48,2.3102]
[1734540548335,2.34,216.54,216.46,11.27630394]
[1734540548533,2.34,216.54,216.45,2.3105]
[1734540548843,13.61630394,216.54,216.43,11.27630394]
[1734540549239,13.61630394,216.54,216.4,11.27630394]
[1734540549744,2.3105,216.45,216.41,2.3109]
[1734540549940,2.34,216.47,216.4,11.27630394]
[1734540550142,2.34,216.46,216.4,11.27630394]
[1734540550844,2.3105,216.45,216.4,13.58730394]
[1734540552743,2.3105,216.45,216.4,11.27630394]
[1734540552943,2.34,216.5,216.43,11.27630394]
[1734540553341,2.34,216.5,216.43,13.58700394]
[1734540553742,2.3103,216.48,216.43,13.58700394]
[1734540554049,2.34,216.5,216.46,11.27630394]
[1734540554344,4.6498,216.52,216.46,11.27630394]
[1734540554545,2.3098,216.52,216.47,2.3103]
[1734540555446,2.3098,216.52,216.46,11.27630394]
[1734540555447,4.6497,216.53,216.48,2.3102]
[1734540555656,2.34,216.56,216.5,11.27630394]
[1734540555947,4.6495,216.56,216.51,2.3098]
[1734540556644,2.3095,216.55,216.51,2.3098]
[1734540558051,2.3095,216.55,216.47,11.27630394]
[1734540558245,2.3097,216.54,216.5,2.31]
[1734540558446,2.3097,216.54,216.47,11.27630394]
[1734540558843,2.3097,216.54,216.49,2.3101]
[1734540559049,2.3097,216.53,216.49,2.3101]
[1734540559353,2.34,216.56,216.48,2.3102]
[1734540559652,2.34,216.56,216.44,11.27630394]
[1734540560052,2.34,216.56,216.47,2.3103]
[1734540560255,2.3097,216.53,216.44,11.27630394]
[1734540560853,2.3097,216.53,216.48,2.3101]
[1734540561156,2.34,216.56,216.44,11.27630394]
[1734540561355,2.34,216.56,216.45,2.3104]
[1734540561655,2.3097,216.53,216.45,2.3104]
[1734540561954,2.34,216.56,216.45,2.3104]
[1734540562847,2.3101,216.49,216.45,2.3104]
[1734540567454,2.3103,216.47,216.44,11.27630394]
[1734540567655,10.92105706,216.57,216.44,11.27630394]
[1734540567847,2.34,216.56,216.47,11.27630394]
[1734540568251,2.3099,216.51,216.48,2.3102]
[1734540568654,2.3099,216.51,216.47,13.58660394]
[1734540568858,2.31,216.5,216.44,11.27630394]
[1734540569855,2.3099,216.51,216.47,2.3103]
[1734540570053,2.34,216.56,216.47,11.27630394]
[1734540570256,2.34,216.57,216.5,11.27630394]
[1734540570755,1.4443,216.59,216.52,2.3098]
[1734540570958,2.34,216.58,216.5,11.27630394]
[1734540571159,2.3093,216.57,216.5,11.27630394]
[1734540571358,3.7843,216.59,216.52,2.3098]
[1734540572256,2.3094,216.56,216.52,2.3098]
[1734540577259,9.40912487,216.59,216.47,11.27630394]
[1734540577660,2.3101,216.5,216.46,2.3104]
[1734540578263,2.3101,216.5,216.47,7.21625936]
[1734540578461,2.3103,216.48,216.44,2.3106]
[1734540578664,7.21625936,216.5,216.44,2.3106]
[1734540578858,2.32,216.49,216.42,7.21625936]
[1734540579163,2.3105,216.46,216.42,9.52705936]
[1734540579560,7.21625936,216.46,216.37,3.0245]
[1734540579764,2.3109,216.42,216.38,9.52745936]
[1734540579966,2.32,216.44,216.37,3.0245]
[1734540580166,2.32,216.44,216.34,11.2850015]
[1734540581867,2.3112,216.39,216.34,13.5966015]
[1734540582067,2.32,216.44,216.34,13.5966015]
[1734540582970,2.3112,216.39,216.34,2.3116]
[1734540583176,2.3112,216.39,216.31,2.312]
[1734540583177,2.32,216.39,216.31,2.312]
[1734540583977,2.3115,216.37,216.31,2.312]
[1734540584177,2.32,216.39,216.31,2.312]
[1734540584670,2.32,216.39,216.3,11.2850015]
[1734540584867,2.32,216.39,216.33,11.2850015]
[1734540585575,4.6312,216.39,216.34,2.3116]
[1734540587468,2.32,216.39,216.34,2.3116]
[1734540587778,2.34,216.43,216.33,11.2850015]
[1734540588169,2.3108,216.43,216.37,2.3113]
[1734540588375,2.34,216.43,216.33,14.2558015]
[1734540588875,2.3109,216.42,216.37,2.3114]
[1734540589083,7.99791747,216.43,216.33,14.2558015]
[1734540589472,2.311,216.41,216.35,2.3115]
[1734540589980,2.3113,216.38,216.33,11.2850015]
[1734540590276,2.34,216.37,216.32,2.3118]
[1734540591481,4.6515,216.37,216.32,2.3118]
[1734540594081,4.6515,216.37,216.34,2.3116]
[1734540594082,2.34,216.37,216.34,2.3116]
[1734540594778,2.34,216.37,216.33,11.2850015]
[1734540595083,2.34,216.42,216.33,11.2850015]
[1734540595784,2.3114,216.38,216.33,13.5968015]
[1734540596383,2.3114,216.38,216.34,2.3117]
[1734540596689,2.34,216.42,216.31,13.6250015]
[1734540597886,2.3113,216.38,216.34,2.3116]
[1734540598181,2.34,216.42,216.31,13.6250015]
[1734540598785,2.3111,216.4,216.36,2.3114]
[1734540599181,2.34,216.42,216.36,2.3114]
[1734540599587,2.34,216.42,216.34,2.3116]
[1734540599780,2.34,216.42,216.31,2.34]
[1734540600188,2.3113,216.38,216.33,2.3117]
[1734540600485,2.3113,216.38,216.34,7.22455039]
[1734540601390,2.3113,216.38,216.34,9.53625039]
[1734540602993,2.3111,216.4,216.36,9.53595039]
[1734540603190,2.34,216.39,216.38,7.22455039]
[1734540603494,2.34,216.46,216.38,7.22455039]
[1734540603684,2.34,216.47,216.43,7.22455039]
[1734540603887,2.34,216.49,216.43,7.22455039]
[1734540604402,2.34,216.51,216.45,7.22455039]
[1734540604693,4.6697,216.54,216.45,7.22455039]
[1734540604995,2.34,216.53,216.47,7.22455039]
[1734540605383,2.34,216.53,216.48,2.3101]
[1734540605384,4.6498,216.53,216.48,2.3101]
[1734540606089,10.22030247,216.53,216.48,2.3101]
[1734540606689,2.34,216.53,216.49,2.3101]
[1734540606893,2.34,216.53,216.44,11.27454163]
[1734540607295,2.3099,216.51,216.46,2.3104]
[1734540607490,2.34,216.53,216.41,11.27454163]
[1734540608196,2.31,216.51,216.44,2.3105]
[1734540608489,2.34,216.53,216.41,11.27454163]
[1734540610092,2.34,216.53,216.41,2.3109]
[1734540610397,4.5554,216.52,216.38,11.27454163]
[1734540610992,2.3103,216.48,216.42,2.3108]
[1734540611193,2.32,216.48,216.42,2.3108]
[1734540611693,2.3103,216.47,216.42,2.3108]
[1734540611988,2.3103,216.47,216.43,2.3107]
[1734540612797,2.3103,216.47,216.36,3.8484]
[1734540612798,11.27454163,216.54,216.41,13.59454163]
[1734540613099,2.32,216.53,216.41,13.59454163]
[1734540613292,2.3099,216.51,216.45,2.3104]
[1734540613497,2.32,216.53,216.45,2.3104]
[1734540613694,5.63706229,216.56,216.45,2.3104]
[1734540613996,2.32,216.55,216.45,2.3104]
[1734540614197,2.3098,216.52,216.45,2.3104]
[1734540614498,2.32,216.55,216.45,2.3104]
[1734540614796,2.31,216.51,216.46,2.3104]
[1734540615196,2.32,216.55,216.47,11.27454163]
[1734540615397,2.32,216.55,216.5,2.31]
[1734540615894,2.3096,216.54,216.49,2.3101]
[1734540616096,2.3096,216.54,216.41,2.32]
[1734540616097,11.27454163,216.54,216.41,13.59454163]
[1734540616298,11.27454163,216.51,216.41,2.32]
[1734540616497,2.32,216.5,216.38,11.27454163]
[1734540616690,2.3103,216.47,216.42,2.3108]
[1734540618489,2.3104,216.46,216.42,2.3108]
[1734540618895,2.32,216.5,216.38,11.27454163]
[1734540619101,2.3105,216.45,216.41,2.3109]
[1734540619297,2.32,216.5,216.38,11.27454163]
[1734540620599,2.32,216.5,216.41,11.27454163]
[1734540621007,2.3103,216.48,216.41,11.27454163]